[Event "Kezmarok Chess Open 2022"]
[Site "Kezmarok"]
[Date "2022.09.28"]
[Round "6.3"]
[White "Berezjuk, Sergej"]
[Black "Jablonicky, Martin"]
[Result "1/2-1/2"]
[ECO "B52"]
[WhiteElo "2382"]
[BlackElo "2344"]
[Annotator "TA"]
[PlyCount "124"]
[EventDate "2022.09.24"]
[EventType "swiss"]
[EventCountry "SVK"]
[SourceTitle "playchess.com"]
[Source "ChessBase"]
[SourceQuality "1"]
[TimeControl "40/5400+30:1800+30"]

{[%evp 22,124,0,-6,13,0,14,0,11,19,28,28,88,43,41,13,28,0,43,24,46,48,65,54,63,45,52,41,33,36,31,12,65,0,0,0,0,-18,-20,-20,-16,-25,-21,-20,-11,-19,-11,-21,-21,-33,-22,-29,-26,-23,0,-28,0,-4,0,0,0,-12,-6,-14,-11,-11,0,0,0,0,0,-12,46,0,0,0,0,-15,-13,-17,-19,-39,-8,-8,-16,-79,-71,-79,-72,-73,-15,-15,-15,-15,-15,-15,-15,-74,-74,-74,-3,-3,-3,-8,-3]} 1. e4 {[%emt 0:00:03]} c5 {[%emt 0:00:13]} 2. Nf3 {[%emt 0:00:08]} d6 {[%emt 0:00:04]} 3. Bb5+ {[%emt 0:00:20]} Bd7 {[%emt 0:00:12]} 4. Bxd7+ {[%emt 0:00:06]} Qxd7 {[%emt 0:00:04]} 5. c4 {[%emt 0:00:08]} Nf6 {[%emt 0:00:09]} 6. Nc3 {[%emt 0:00:05]} Nc6 {[%emt 0:00:07]} 7. O-O {[%emt 0:06:51]} g6 {[%emt 0:00:13]} 8. d4 {[%emt 0:00:09]} cxd4 {[%emt 0:00:05]} 9. Nxd4 {[%emt 0:00:07]} Bg7 {[%emt 0:00:09]} 10. Nde2 {[%emt 0:03:49]} O-O {[%emt 0:00:10]} 11. f3 {[%emt 0:00:09]} a6 {[%emt 0:05:11]} 12. a4 {[%emt 0:06:11]} Rac8 {[%emt 0:00:55] B52: Sicilian: Moscow Variation with 3...Bd7.} 13. Bg5 {[%emt 0:05:28]} Qd8 {[%emt 0:10:45]} 14. Kh1 {[%emt 0:04:35] [#]} e6 $146 {[%emt 0:08:51]} ({Predecessor:} 14... Re8 15. Rb1 Qa5 16. Bh4 Ne5 17. b3 Ned7 18. Qd2 Qh5 19. Bg5 h6 20. Be3 Kh7 {½-½ (20) Rublevsky,S (2657)-Georgiev,K (2676) Poikovsky 2001}) 15. Rb1 {[%emt 0:07:02]} Qc7 {[%emt 0:08:31]} 16. Qd2 {[%emt 0:09:30]} Rfd8 {[%emt 0:13:19]} (16... Nd7 $11) 17. Rfd1 {[%emt 0:06:11]} Rd7 {[%emt 0:02:52]} 18. Qf4 {[%emt 0:06:53]} Ne8 {[%emt 0:01:56]} 19. Qd2 {[%emt 0:01:19]} Nb4 {[%emt 0:15:56]} 20. Rbc1 {[%emt 0:03:24]} Qb8 {[%emt 0:01:24]} (20... Qxc4 $2 21. Nd5 $1 {[%mdl 512]} exd5 22. Rxc4 Rxc4 23. exd5 $18) 21. b3 {[%emt 0:02:29]} b6 {[%emt 0:03:38]} 22. Bh4 {[%emt 0:09:13]} Qb7 {[%emt 0:00:26][%cal Od6d5]} 23. Qe3 {[%emt 0:01:09]} Nc7 {[%emt 0:02:58]} 24. Bf2 {[%emt 0:00:45]} Rb8 {[%emt 0:01:07]} 25. Bg3 {[%emt 0:01:16]} Rbd8 {[%emt 0:00:41]} 26. Nd4 {[%emt 0:03:34]} Nc6 {[%emt 0:09:40]} (26... d5 $11) 27. Nde2 {[%emt 0:01:18] White is more active.} (27. Nxc6 $14 Qxc6 28. Bf2) 27... b5 {[%emt 0:03:31]} 28. axb5 {[%emt 0:01:25]} axb5 {[%emt 0:00:02]} 29. cxb5 {[%emt 0:00:10]} Nxb5 {[%emt 0:00:05]} 30. Na4 {[%emt 0:00:13]} Ne5 {[%emt 0:01:46]} 31. Bf2 {[%emt 0:00:33]} (31. Nb6 {looks sharper.} Rc7 32. Qg5 Qb8 33. Rxc7 Qxc7 34. Nc4) 31... Rc7 {[%emt 0:02:22]} 32. Qd2 {[%emt 0:07:30]} Rdc8 {[%emt 0:01:10]} 33. Rxc7 {[%emt 0:02:33]} Rxc7 {[%emt 0:01:53]} 34. Bb6 Rc8 {[%emt 0:01:54]} 35. Qa5 {[%emt 0:02:42]} Qc6 {[%emt 0:01:44]} 36. h3 $1 {[%emt 0:02:40] Threatens to win with Rc1.} Ra8 {[%emt 0:01:42]} 37. Qd2 {[%emt 0:01:27]} Rc8 {[%emt 0:01:00]} 38. Be3 {[%emt 0:00:50]} Bf8 {[%emt 0:00:47]} 39. Nb6 {[%emt 0:01:40] aiming for Rc1.} Rc7 {[%emt 0:00:30]} 40. Rc1 {[%emt 0:04:57]} Qb7 {[%emt 0:00:02]} 41. Rd1 {[%emt 0:03:01]} Qa6 {[%emt 0:07:58]} 42. Rc1 {[%emt 0:02:29]} Rxc1+ {[%emt 0:03:31]} 43. Qxc1 {[%emt 0:02:20]} Qa2 {[%emt 0:00:42]} 44. Qd1 {[%emt 0:00:18]} Nc6 {[%emt 0:08:02]} 45. Qd3 {[%emt 0:03:21]} Qa5 {[%emt 0:00:07]} 46. Bf2 {[%emt 0:02:21]} Qb4 {[%emt 0:02:16]} ({Black should try} 46... Ne5 $11 47. Qc2 Na3) 47. Nc4 {[%emt 0:02:45]} (47. Qc2 $1 $14 Nbd4 48. Nxd4 Nxd4 49. Qc7) 47... Nc7 {[%emt 0:01:12]} 48. Bg3 {[%emt 0:00:36]} Nb5 {[%emt 0:01:18]} 49. Ne3 {[%emt 0:02:27]} Qc5 {[%emt 0:01:45]} 50. Ng4 {[%emt 0:00:47]} Bg7 {[%emt 0:01:30] Against Nf6+} 51. Qc4 {[%emt 0:03:39]} h5 {[%emt 0:03:42]} 52. Nf2 {[%emt 0:00:52]} Bf8 {[%emt 0:03:31]} 53. Qd3 {[%emt 0:02:37]} (53. Qxc5 $11 {keeps the balance.} dxc5 54. Nd3) 53... Nbd4 $17 {[%emt 0:01:33]} 54. Nxd4 {[%emt 0:02:08]} Nxd4 {[%emt 0:00:04]} 55. Qc4 {[%emt 0:01:01]} Qb6 {[%emt 0:01:08]} (55... d5 $17 56. Qxc5 Bxc5) 56. b4 $1 $11 {[%emt 0:00:48]} d5 {[%emt 0:00:49]} 57. exd5 {[%emt 0:01:04]} exd5 {[%emt 0:00:15]} ({Don't take} 57... Bxb4 58. Bc7 Qa7 59. Ne4 (59. Qxb4 Qa1+ 60. Kh2 Ne2 $11) 59... Qa1+ 60. Kh2 $11) 58. Qxd5 {[%emt 0:00:48]} Ne2 {[%emt 0:00:10]} 59. Qe5 {[%emt 0:00:43]} (59. Bh4 $1 $11) 59... Nxg3+ $17 {[%emt 0:00:50]} 60. Qxg3 {[%emt 0:00:02] [#]} Qxb4 {[%emt 0:00:19]} ({Better is} 60... Bd6 $1 $17 {[%cal Rd6g3]} 61. f4 Qxb4) 61. Ne4 $11 {[%emt 0:00:35]} Qd4 {[%emt 0:00:24]} 62. Qf2 {[%emt 0:01:26]} Qxf2 {[%emt 0:00:15] Weighted Error Value: White=0.12 (very precise) /Black=0.14 (very precise)} 1/2-1/2

[Event "Kezmarok Chess Open 2022"]
[Site "Kezmarok"]
[Date "2022.09.28"]
[Round "6.4"]
[White "Demeter, Peter"]
[Black "Manik, Mikulas"]
[Result "1-0"]
[ECO "A10"]
[WhiteElo "2067"]
[BlackElo "2362"]
[Annotator "TA"]
[PlyCount "82"]
[EventDate "2022.09.24"]
[EventType "swiss"]
[EventCountry "SVK"]
[SourceTitle "playchess.com"]
[Source "ChessBase"]
[SourceQuality "1"]
[TimeControl "40/5400+30:1800+30"]

{[%evp 14,82,13,9,15,16,14,18,25,33,28,31,29,8,23,11,36,0,0,0,0,0,14,0,25,9,7,0,70,79,81,79,112,-16,-11,-12,-15,-14,-10,-56,-50,-54,-58,-92,-31,-93,-87,-110,-83,-134,-137,-151,-159,-147,-141,-150,-149,-163,-172,-162,-141,-155,-142,-317,-333,-661,-653,-653,-631,-601,-184]} 1. c4 {[%emt 0:00:03]} g6 {[%emt 0:00:48]} 2. Nc3 {[%emt 0:00:10]} Bg7 {[%emt 0:00:02]} 3. g3 {[%emt 0:00:07]} Nf6 {[%emt 0:00:05]} 4. Bg2 {[%emt 0:00:06]} O-O {[%emt 0:00:08]} 5. Nf3 {[%emt 0:00:05]} d6 {[%emt 0:00:09]} 6. O-O {[%emt 0:00:06]} e5 {[%emt 0:00:13] 6...e5 is better than 6...Nc6.} 7. d3 {[%emt 0:00:47]} Re8 {[%emt 0:00:42]} 8. e4 {[%emt 0:00:13]} Nbd7 {[%emt 0:05:17] A24: English Opening vs King's Indian: Lines without ...Nc6.} 9. h3 {[%emt 0:00:35]} a5 {[%emt 0:08:08]} 10. Be3 {[%emt 0:00:09]} c6 {[%emt 0:07:05] The position is equal.} 11. Qd2 {[%emt 0:00:26]} Nc5 {[%emt 0:02:01]} 12. Rad1 {[%emt 0:00:39] [#]} a4 $146 {[%emt 0:05:12]} ({Predecessor:} 12... Qc7 13. Nh4 Qe7 14. f4 exf4 15. Bxf4 Nh5 16. Qf2 Nxf4 17. gxf4 Ne6 18. Ne2 c5 {0-1 (36) Andronis,V (2078)-Goumas,I (2145) Athens 2001}) 13. Qc2 {[%emt 0:07:00]} Qa5 {[%emt 0:05:45]} 14. Bd2 {[%emt 0:05:14]} h6 {[%emt 0:11:44]} 15. Nb1 {[%emt 0:05:26]} Qa6 {[%emt 0:08:26]} 16. Be3 {[%emt 0:05:08]} Qa5 {[%emt 0:07:23]} 17. Bd2 {[%emt 0:03:00]} Qc7 {[%emt 0:02:08]} 18. Be3 {[%emt 0:02:58]} Bd7 {[%emt 0:03:39] [#]} 19. Nxe5 $1 {[%emt 0:03:49]} Rxe5 {[%emt 0:00:13]} 20. d4 $1 {[%emt 0:00:29][%csl LRc5,LRe5][%cal Bd3d4,Bd4c5,Bc5d6][%mdl 32]} Rh5 {[%emt 0:00:32]} (20... Rxe4 $1 $11 21. dxc5 d5) 21. dxc5 $14 {[%emt 0:00:46]} Bxh3 {[%emt 0:04:10]} 22. cxd6 {[%emt 0:02:54]} Bxg2 {[%emt 0:00:31] [#]} 23. Kxg2 {[%emt 0:01:19]} (23. dxc7 {leads to mate.} Bf3 24. c8=Q+ Rxc8) ({White must play} 23. f3 $1 $16 Qa5 24. Qxg2 (24. Kxg2 Qe5 $16)) 23... Qd7 $11 {[%emt 0:00:25] Hoping for ...Qh3+.} 24. Rh1 {[%emt 0:00:36] Prevents Qh3+.} Rxh1 {[%emt 0:01:13]} 25. Rxh1 {[%emt 0:01:46]} Qxd6 {[%emt 0:00:05]} 26. Nc3 {[%emt 0:16:54]} (26. Bxh6 $11 Bxh6 27. Rxh6) 26... Ng4 $15 {[%emt 0:10:46]} 27. Bc1 {[%emt 0:00:18]} Qd4 {[%emt 0:03:58]} 28. Nd1 {[%emt 0:00:26]} Ne5 {[%emt 0:06:12]} (28... Rd8 $17 29. Ne3 Nxe3+ 30. Bxe3 Qxb2 31. Qxb2 Bxb2) 29. Bxh6 {[%emt 0:04:19]} (29. Ne3 $1 $15 Qd3 30. b3) 29... Bxh6 $17 {[%emt 0:01:02]} 30. Rxh6 {[%emt 0:00:08]} Qxc4 {[%emt 0:01:00]} (30... Rd8 {feels hotter.} 31. Rh1 Qxc4 32. Nc3 a3) 31. Qxc4 {[%emt 0:09:07]} ({White should play} 31. Nc3) 31... Nxc4 $15 {[%emt 0:00:07][%mdl 4096] Endgame KRN-KRN} 32. Rh1 {[%emt 0:02:55]} Rd8 {[%emt 0:01:27]} 33. b3 {[%emt 0:00:44] [#]} axb3 {[%emt 0:00:41]} 34. axb3 {[%emt 0:00:07]} Nd2 {[%emt 0:00:46][%csl LRb3,LRe4]} 35. e5 {[%emt 0:00:21]} Nxb3 {[%emt 0:00:40]} 36. Ne3 {[%emt 0:00:11]} b5 {[%emt 0:02:08][%cal Bb7b5,Bb5b4][%mdl 32] Against Nc4} 37. Kf3 {[%emt 0:06:39]} b4 {[%emt 0:01:29] Strongly threatening ...Nd2+.} 38. Kf4 $2 {[%emt 0:03:46] Loses the game.} (38. Rd1 $17 Nd4+ 39. Ke4) 38... Nd2 $19 {[%emt 0:01:26] Threatens to win with ...Rd4+.} 39. Rc1 $2 {[%emt 0:01:53]} (39. Nf1 Nc4 40. Ne3) 39... Rd4+ {[%emt 0:00:56] Black is clearly winning.} 40. Kg5 {[%emt 0:00:34]} Kg7 {[%emt 0:00:08][%cal Rd2f3]} 41. f4 {[%emt 0:30:33]} Nf3+ $2 {[%emt 0:31:19][%mdl 32768] Weighted Error Value: White=0.31/Black=0.11 (very precise) . Loss on time!?} (41... b3 42. Nd1 Nf3+ 43. Kg4 Nxe5+ 44. Kh4 Nc4) 1-0

[Event "Kezmarok Chess Open 2022"]
[Site "Kezmarok"]
[Date "2022.09.28"]
[Round "6.5"]
[White "Kovac, Lubomir"]
[Black "Elias, David"]
[Result "1/2-1/2"]
[ECO "A48"]
[WhiteElo "2091"]
[BlackElo "1988"]
[Annotator "TA"]
[PlyCount "92"]
[EventDate "2022.09.24"]
[EventType "swiss"]
[EventCountry "SVK"]
[SourceTitle "playchess.com"]
[Source "ChessBase"]
[SourceQuality "1"]
[TimeControl "40/5400+30:1800+30"]

{[%evp 17,92,0,0,0,0,0,0,0,-3,-39,-39,-41,-35,-71,-39,-58,-43,-49,-49,-55,-11,-60,-50,-62,-37,-121,-124,-118,-127,-145,-142,-142,-98,-93,-101,-122,-120,-135,-31,-165,-149,-208,-204,-287,-142,-154,-150,-176,-158,-160,-128,-128,-128,-135,-128,-126,-87,-132,-132,-118,-16,-17,-17,-17,-17,-8,-8,-8,-8,-8,-8,-8,-8,-12,0,0,0]} 1. d4 Nf6 2. Nf3 g6 3. Bf4 Bg7 4. Nbd2 d5 5. e3 O-O 6. h3 c5 7. c3 b6 8. Bd3 Bb7 9. O-O Nc6 10. Ne5 {A48: 1 d4 Nf6 2 Nf3 g6: Torre, London and Colle Systems.} Nd7 {[%cal Rd7e5]} 11. Nxd7 Qxd7 12. Bb5 a6 13. Bxc6 Qxc6 14. Bg3 {[#]} a5 $146 ({Predecessor:} 14... f6 15. f4 a5 16. Nf3 a4 17. a3 Ra6 18. Qd2 Bc8 19. Rfd1 Rd8 20. Qe2 Ra7 {0-1 (52) Draganic,S (2157)-Zvan,Z (2273) Pula 2012}) 15. f4 Qb5 16. Rb1 Qd3 17. Rf3 Qf5 18. Bh4 f6 19. g4 (19. Qb3 $11) 19... Qd7 20. f5 e6 21. Qc2 (21. fxg6 $15 hxg6 22. Qc2) 21... exf5 $17 22. gxf5 g5 23. Bf2 h5 24. Nf1 Kf7 25. Rd1 c4 26. Ng3 Rh8 27. Qe2 b5 (27... Rae8 $17 28. Nf1 Bf8) 28. Be1 ({White should play} 28. e4 $15) 28... Rag8 29. Bd2 (29. Rf1 $17) 29... Bf8 $19 {...g4 is the strong threat.} 30. Rf2 {[#]} (30. Rff1 {was worth a try.}) 30... g4 (30... Bd6 $1 $19 {[%cal Rd6g3] has better winning chances.} 31. Rg2 h4) 31. h4 Bd6 32. Kh2 Bc8 ({Worse is} 32... Bxg3+ 33. Kxg3 Qe7 34. Rf4 $17) 33. Rdf1 Bxg3+ 34. Kxg3 Qd6+ 35. Kg2 Bd7 36. Rf4 {[%cal Bf2f4,Bf4g4,Bg4g3][%mdl 32]} b4 37. Qe1 {[%cal Rc3b4]} Rb8 38. Qg3 {[%cal Of4g4]} Rhe8 ({Better is} 38... b3 $17 39. a3 Qb6) 39. Rxg4 $1 $11 {[#] Intending Rg7+ and mate. The position is equal.} Qxg3+ 40. Rxg3 Re4 41. Kh3 bxc3 42. Bxc3 a4 43. a3 Rbe8 44. Rff3 Bc8 45. Bb4 Bd7 {[%mdl 1024] Black has compensation.} 46. Bd6 Bc8 {White happily takes the draw.  Weighted Error Value: White=0.22 (precise) /Black=0.22 (precise)} 1/2-1/2

[Event "Kezmarok Chess Open 2022"]
[Site "Kezmarok"]
[Date "2022.09.28"]
[Round "6.6"]
[White "Walter, Ema"]
[Black "Bochnickova, Simona"]
[Result "1-0"]
[ECO "C47"]
[WhiteElo "2062"]
[BlackElo "1903"]
[Annotator "TA"]
[PlyCount "63"]
[EventDate "2022.09.24"]
[EventType "swiss"]
[EventCountry "SVK"]
[SourceTitle "playchess.com"]
[Source "ChessBase"]
[SourceQuality "1"]
[TimeControl "40/5400+30:1800+30"]

{[%evp 9,62,14,10,12,13,15,10,12,8,0,15,11,19,5,8,0,13,8,18,-49,40,41,75,76,267,276,408,411,401,399,518,485,711,606,747,612,581,612,577,579,531,468,664,621,691,684,821,789,29988,29989,29997,29998,29998,29999,29999]} 1. e4 e5 2. Nf3 Nf6 3. Nc3 Nc6 4. h3 d5 5. exd5 Nxd5 6. Bb5 {White wants to play Nxe5. C47: Scotch Four Knights and Four Knights with 4 g3.} Nxc3 7. bxc3 {Threatening Nxe5.} Bd6 8. d4 {The position is equal.} exd4 9. cxd4 O-O 10. O-O h6 11. Bb2 {[#]} Bf5 $146 ({Predecessor:} 11... Bd7 12. c4 Re8 13. c5 Bf8 14. d5 Ne7 15. Bc4 Ng6 16. Qd4 Qe7 17. d6 cxd6 {½-½ (58) Chigaev,M (2631)-Belyakov,B (2448) Chess.com INT 2021}) 12. Re1 Nb4 13. Ba4 Nd5 14. Ne5 (14. c4 $11 Nf4 15. Bc2 Bxc2 16. Qxc2) 14... c6 (14... Bb4 $15) 15. Qf3 Qc8 16. Bb3 $36 {[%mdl 2048] White is really pushing. White is more active.} Be6 $2 {This move loses the game for Black.} (16... Bh7 $16) 17. c4 $18 Nf6 (17... Nb6 {might work better.} 18. d5 cxd5) 18. d5 cxd5 19. cxd5 Bd7 20. Nc4 Bb4 (20... Qc7 $142 21. Bxf6 gxf6 22. Qxf6 Bh2+ 23. Kh1 Qf4) 21. Bxf6 Bxe1 22. Qg3 {[%csl Gf6][%cal Rg3g7] [#]} Bxf2+ 23. Kxf2 {[%csl Gf6][%cal Rg3g7]} Qc5+ 24. Ne3 {[%csl Gf6][%cal Rg3g7]} g6 25. Qh4 h5 (25... Qd6 $142 26. Rd1 Rac8) 26. Be7 {A strong pair of Bishops.} Qc3 27. Rd1 Rfe8 28. d6 Qc5 {[#]} 29. Bxf7+ $1 {[%mdl 512] White mates.} Kxf7 (29... Kh7 30. Rd5) 30. Qf6+ {[%mdl 64] Deflection} Kg8 31. Qxg6+ Kh8 32. Bf6# {Weighted Error Value: White=0.17 (very precise) /Black=0.69} 1-0

[Event "Kezmarok Chess Open 2022"]
[Site "Kezmarok"]
[Date "2022.09.28"]
[Round "6.7"]
[White "Janik, Marek Tobias"]
[Black "Sosovickova, Jana"]
[Result "1-0"]
[ECO "A80"]
[WhiteElo "1823"]
[BlackElo "2039"]
[Annotator "TA"]
[PlyCount "87"]
[EventDate "2022.09.24"]
[EventType "swiss"]
[EventCountry "SVK"]
[SourceTitle "playchess.com"]
[Source "ChessBase"]
[SourceQuality "1"]
[TimeControl "40/5400+30:1800+30"]

{[%evp 9,87,41,38,38,70,49,68,39,54,50,45,44,46,39,53,33,38,37,42,33,37,47,68,67,93,56,98,101,114,42,142,97,146,136,201,179,195,177,200,141,143,140,159,150,156,111,139,140,139,134,149,139,157,147,168,43,195,178,168,188,431,427,458,456,781,665,1030,1020,29975,29976,29971,1367,29973,29972,29963,6650,29983,1430,1131,1075]} 1. d4 {[%emt 0:00:05]} f5 {[%emt 0:02:01]} 2. Nf3 {[%emt 0:02:21]} Nf6 {[%emt 0:00:04]} 3. Bf4 {[%emt 0:00:09]} d6 {[%emt 0:00:52]} 4. e3 {[%emt 0:00:53]} g6 {[%emt 0:00:15]} 5. c3 {[%emt 0:01:08]} Bg7 {[%emt 0:00:26]} 6. Bc4 {[%emt 0:02:09] A80: Dutch Defence: Unusual White second moves.} d5 {[%emt 0:03:46]} 7. Be2 {[%emt 0:00:49]} O-O {[%emt 0:00:25][%cal Oc7c5] [#]} 8. Ne5 $146 {[%emt 0:01:20] White is slightly better.} (8. c4 {is more complex.} c5 9. dxc5 Ne4 10. Be5) ({Predecessor:} 8. Nbd2 c6 9. h4 Qe8 10. Ne5 h6 11. Qb3 Nbd7 12. Ndf3 Ne4 13. Nxd7 Qxd7 14. Ne5 Qe6 15. f3 {½-½ (39) Zhou,Y-Zhang,Y Wuxi 2016}) 8... Nbd7 {[%emt 0:04:38]} 9. Nd2 {[%emt 0:02:25]} Nxe5 {[%emt 0:04:44]} 10. Bxe5 {[%emt 0:00:10]} Ne4 {[%emt 0:03:25]} 11. Bxg7 {[%emt 0:00:07]} Kxg7 {[%emt 0:00:07]} 12. h4 {[%emt 0:02:17]} Nxd2 {[%emt 0:10:03]} 13. Qxd2 {[%emt 0:00:17]} Qd6 {[%emt 0:03:49]} 14. f4 {[%emt 0:01:31]} Bd7 {[%emt 0:04:23]} 15. h5 {[%emt 0:08:09]} b6 {[%emt 0:06:54][%cal Og6g5]} 16. O-O-O {[%emt 0:06:13]} Rh8 {[%emt 0:07:35]} 17. Rdg1 {[%emt 0:04:06]} Kf7 {[%emt 0:05:19]} 18. g4 {[%emt 0:05:33]} Rag8 {[%emt 0:03:08]} 19. Qe1 {[%emt 0:06:25]} (19. g5 $16) 19... Qf6 {[%emt 0:02:08]} ({Black should try} 19... fxg4 $14 20. Bxg4 Bf5) 20. Bf3 {[%emt 0:06:31]} c6 {[%emt 0:03:11]} (20... fxg4 $142 21. Bxd5+ Be6 22. Bxe6+ Qxe6) 21. g5 $16 {[%emt 0:03:36]} Qg7 {[%emt 0:05:35]} (21... Qd6 $16 {was worth a try.} 22. Rh3 Be8) 22. c4 {[%emt 0:04:35]} Be6 {[%emt 0:04:00]} 23. Qb4 {[%emt 0:07:43]} Qf8 {[%emt 0:00:57]} 24. Qa4 {[%emt 0:01:01]} Qa8 {[%emt 0:00:16]} 25. Kb1 {[%emt 0:02:09]} Kg7 {[%emt 0:03:53]} 26. Rc1 {[%emt 0:02:40]} Qb7 {[%emt 0:06:10]} 27. Qa3 {[%emt 0:05:10] White is more active.} Rc8 {[%emt 0:03:27]} 28. Be2 {[%emt 0:06:26]} Qd7 {[%emt 0:01:49]} 29. Qc3 {[%emt 0:03:59]} Rhd8 {[%emt 0:02:38]} 30. Rh4 {[%emt 0:02:16]} Rh8 {[%emt 0:00:48]} 31. Rch1 $36 {[%emt 0:01:22][%mdl 2048] White is on the roll.} Rcf8 {[%emt 0:02:15]} 32. Qe1 {[%emt 0:03:45]} (32. c5 $18) 32... Qe8 $2 {[%emt 0:02:31] [#] This move loses the game for Black.} ({Black should play} 32... dxc4 $14 33. Bf3 Bd5) 33. Qf1 {[%emt 0:01:44]} Bf7 {[%emt 0:01:11]} 34. Qh3 {[%emt 0:01:14]} e6 $2 {[%emt 0:00:23]} (34... Rfg8 {keeps fighting.} 35. b3 dxc4 36. Bxc4 (36. bxc4 b5 $16) 36... Bd5) 35. hxg6 $18 {[%emt 0:00:44]} Bxg6 {[%emt 0:00:24]} 36. Bh5 {[%emt 0:00:05] [#] Black must now prevent Bxg6.} Rfg8 {[%emt 0:00:47]} (36... h6 $142 37. Rg1 Kg8) 37. Bxg6 {[%emt 0:01:17]} Qxg6 {[%emt 0:02:48]} 38. Rh6 {[%emt 0:00:07] Inhibits h5.} Qe8 {[%emt 0:00:03]} 39. Rxh7+ {[%emt 0:00:33]} Rxh7 {[%emt 0:00:11]} 40. Qxh7+ {[%emt 0:00:09]} Kf8 {[%emt 0:00:01]} 41. Rh6 {[%emt 0:30:25]} Rg7 {[%emt 0:30:34]} 42. Rf6+ {[%emt 0:00:36]} Rf7 {[%emt 0:00:04]} 43. g6 {[%emt 0:00:08]} Rxf6 {[%emt 0:00:19]} 44. g7+ {[%emt 0:00:04] Weighted Error Value: White=0.17 (very precise) /Black=0.58} 1-0

[Event "Kezmarok Chess Open 2022"]
[Site "Kezmarok"]
[Date "2022.09.28"]
[Round "6.8"]
[White "Belus, Benjamin"]
[Black "Mirowska, Oliwia"]
[Result "0-1"]
[ECO "A10"]
[WhiteElo "1932"]
[BlackElo "1856"]
[Annotator "TA"]
[PlyCount "62"]
[EventDate "2022.09.24"]
[EventType "swiss"]
[EventCountry "SVK"]
[SourceTitle "playchess.com"]
[Source "ChessBase"]
[SourceQuality "1"]
[TimeControl "40/5400+30:1800+30"]

{[%evp 9,62,36,50,50,50,52,61,64,56,-17,0,0,6,16,14,-9,58,14,97,34,60,60,129,72,74,79,95,52,42,20,31,0,75,-187,-162,-151,-53,-278,-268,-624,-617,-698,-683,-705,-674,-1121,-1101,-1818,-987,-3515,-2987,-29986,-29987,-2842,-2050]} 1. c4 {[%emt 0:27:54]} d6 {[%emt 0:00:13]} 2. g3 {[%emt 0:00:02]} g6 {[%emt 0:00:10]} 3. Bg2 {[%emt 0:00:06]} Bg7 {[%emt 0:00:06]} 4. Nc3 {[%emt 0:00:02]} c6 {[%emt 0:00:16]} 5. d4 {[%emt 0:00:13]} f5 {[%emt 0:00:29]} 6. e4 {[%emt 0:00:41] A10: English Opening: Unusual Replies for Black.} fxe4 {[%emt 0:00:17]} 7. Nxe4 {[%emt 0:00:02]} Nf6 {[%emt 0:00:10]} 8. Nxf6+ {[%emt 0:00:22] White is slightly better.} Bxf6 {[%emt 0:01:01] [#]} 9. Bh6 $146 {[%emt 0:00:07]} (9. Ne2 $14) ({Predecessor:} 9. Ne2 O-O 10. Bh6 Re8 11. O-O Na6 12. Qd2 Nc7 13. Rad1 Bg4 14. f3 Be6 15. b3 {1-0 (53) Ramis Sebastia,J (1584)-Fentes Caceres,D (1696) Santa Margalida 2016}) 9... Qb6 {[%emt 0:00:29]} 10. Ne2 {[%emt 0:02:07]} Qb4+ {[%emt 0:03:48]} 11. Qd2 {[%emt 0:00:41]} Qxc4 {[%emt 0:02:05]} 12. O-O {[%emt 0:01:07]} Bf5 {[%emt 0:02:47]} ({Black should play} 12... Na6 $11) 13. Rfd1 {[%emt 0:03:47]} (13. h3 $5 {[%cal Rg3g4]}) 13... Nd7 {[%emt 0:14:56]} (13... Na6 $11) 14. b4 {[%emt 0:00:43]} (14. h3 $16) 14... Qf7 {[%emt 0:08:07]} 15. b5 {[%emt 0:01:11]} d5 {[%emt 0:02:25]} (15... Bg7 $14) 16. bxc6 (16. Rac1 $142) 16... bxc6 $16 {[%emt 0:00:06]} 17. Rac1 {[%emt 0:04:51]} Rc8 {[%emt 0:00:44]} 18. Qa5 {[%emt 0:00:53] Hoping for Nf4.} Nb6 {[%emt 0:03:40]} 19. Qxa7 {[%emt 0:03:17]} Nc4 {[%emt 0:00:31]} 20. Qa6 {[%emt 0:06:23][%cal Oc1c4]} Bd7 {[%emt 0:02:25] [#]} (20... Qe6 $11 {remains equal.}) 21. Rb1 $2 {[%emt 0:03:05][%mdl 8192] [#]} (21. Rxc4 $1 $16 dxc4 22. d5 (22. Bxc6 $2 Rxc6 23. Qa8+ Rc8 $19) (22. Rc1 g5 $17)) 21... g5 $1 $19 {[%emt 0:01:05] ...Qh5 is the strong threat.} 22. f4 {[%emt 0:00:38] [#]} Ne3 {[%emt 0:06:17]} (22... g4 $1 $17 {Threatens to win with ...Bf5.} 23. Rdc1 Qe6) 23. Rd3 $2 {[%emt 0:01:45]} (23. Bxg5 $2 Nxd1 24. Rxd1 O-O 25. Bxf6 exf6 $17) ({Better is} 23. Rdc1 $15 Qg6 24. fxg5 Nxg2 25. gxf6) 23... Nxg2 {[%emt 0:00:55]} 24. Kxg2 $2 {[%emt 0:00:02]} (24. fxg5 Bxg5 25. Bxg5) 24... Qh5 $1 {[%emt 0:00:54][%csl LRe2,LRh6]} 25. Rdb3 {[%emt 0:05:54]} Qxh6 {[%emt 0:00:50]} 26. fxg5 {[%emt 0:03:45]} Qxg5 {[%emt 0:03:07]} 27. Rb7 {[%emt 0:01:54]} Bf5 {[%emt 0:01:14]} 28. Rf1 {[%emt 0:01:31]} O-O {[%emt 0:00:41] ( -> ...Be4+)} 29. Nf4 {[%emt 0:07:17]} Be4+ {[%emt 0:00:12]} 30. Kf2 {[%emt 0:01:06]} Bxd4+ {[%emt 0:00:39]} 31. Ke1 {[%emt 0:00:10]} e5 {[%emt 0:01:34] Weighted Error Value: White=1.31/Black=0.38} 0-1